[Event "Titled Tuesday Blitz October 5 2021"]
[White "Kovalev, Vladislav"]
[Black "Tristan, Leonardo"]
[WhiteFideId "13504398"]
[BlackFideId "113816"]
[WhiteElo "2573"]
[BlackElo "2404"]
[Result "0-1"]
[Round "08"]
[TimeControl "180+1"]
[Date "2021.10.05"]
[WhiteClock "0:00:04"]
[BlackClock "0:00:13"]

1. e4 {[%clk 0:02:46]}  d5 {[%clk 0:03:00]} 2. exd5 {[%clk 0:02:45]}  Qxd5 {[%clk 0:03:01]} 3. Nc3 {[%clk 0:02:45]}  Qa5 {[%clk 0:03:01]} 4. d4 {[%clk 0:02:45]}  Nf6 {[%clk 0:03:01]} 5. Bc4 {[%clk 0:02:40]}  Bg4 {[%clk 0:03:01]} 6. f3 {[%clk 0:02:36]}  Bd7 {[%clk 0:03:00]} 7. Ne2 {[%clk 0:02:36]}  e6 {[%clk 0:03:00]} 8. Bd2 {[%clk 0:02:35]}  Qb6 {[%clk 0:03:00]} 9. a4 {[%clk 0:02:34]}  a5 {[%clk 0:02:57]} 10. Be3 {[%clk 0:02:25]}  Be7 {[%clk 0:02:53]} 11. Qd2 {[%clk 0:02:24]}  O-O {[%clk 0:02:51]} 12. O-O {[%clk 0:02:23]}  Nc6 {[%clk 0:02:39]} 13. Kh1 {[%clk 0:01:52]}  Nb4 {[%clk 0:02:38]} 14. Bg1 {[%clk 0:01:14]}  Rad8 {[%clk 0:02:29]} 15. Ne4 {[%clk 0:01:10]}  Nxe4 {[%clk 0:02:08]} 16. fxe4 {[%clk 0:01:10]}  Qc6 {[%clk 0:02:09]} 17. Bb3 {[%clk 0:00:39]}  Qxe4 {[%clk 0:02:03]} 18. Rae1 {[%clk 0:00:38]}  Qh4 {[%clk 0:01:09]} 19. c3 {[%clk 0:00:36]}  Bg5 {[%clk 0:00:56]} 20. Qd1 {[%clk 0:00:20]}  Nd5 {[%clk 0:00:47]} 21. Ng3 {[%clk 0:00:21]}  Bc6 {[%clk 0:00:43]} 22. Ne4 {[%clk 0:00:18]}  Ne3 {[%clk 0:00:30]} 23. Bxe3 {[%clk 0:00:16]}  Qxe4 {[%clk 0:00:30]} 24. Rf3 {[%clk 0:00:15]}  Qg4 {[%clk 0:00:21]} 25. Rg3 {[%clk 0:00:07]}  Qxd1 {[%clk 0:00:21]} 26. Rxd1 {[%clk 0:00:08]}  Bxe3 {[%clk 0:00:19]} 27. Rxe3 {[%clk 0:00:09]}  Bd5 {[%clk 0:00:20]} 28. Bc2 {[%clk 0:00:09]}  Rd6 {[%clk 0:00:20]} 29. Rde1 {[%clk 0:00:09]}  Rfd8 {[%clk 0:00:20]} 30. Kg1 {[%clk 0:00:08]}  Rb6 {[%clk 0:00:20]} 31. R1e2 {[%clk 0:00:08]}  Kf8 {[%clk 0:00:19]} 32. Bd1 {[%clk 0:00:08]}  h6 {[%clk 0:00:18]} 33. Re5 {[%clk 0:00:09]}  Rc6 {[%clk 0:00:14]} 34. Kf2 {[%clk 0:00:07]}  b6 {[%clk 0:00:14]} 35. g3 {[%clk 0:00:07]}  Rcd6 {[%clk 0:00:15]} 36. h4 {[%clk 0:00:07]}  Bc4 {[%clk 0:00:15]} 37. Re1 {[%clk 0:00:07]}  Rd5 {[%clk 0:00:16]} 38. R5e3 {[%clk 0:00:08]}  c5 {[%clk 0:00:15]} 39. dxc5 {[%clk 0:00:05]}  Rxc5 {[%clk 0:00:16]} 40. Bf3 {[%clk 0:00:06]}  Rd2+ {[%clk 0:00:14]} 41. Kg1 {[%clk 0:00:06]}  Rxb2 {[%clk 0:00:15]} 42. Rd1 {[%clk 0:00:06]}  Bd5 {[%clk 0:00:14]} 43. Re5 {[%clk 0:00:04]}  Bxf3 {[%clk 0:00:13]} 0-1


[Site "https://www.chess.com"]

[Event "Titled Tuesday Blitz October 5 2021"]
[White "Madaminov, Mukhiddin"]
[Black "Martinez Reyes, Pedro Ramon"]
[WhiteFideId "14210703"]
[BlackFideId "3901807"]
[WhiteElo "1855"]
[BlackElo "2410"]
[Result "1-0"]
[Round "08"]
[TimeControl "180+1"]
[Date "2021.10.05"]
[WhiteClock "0:00:07"]
[BlackClock "0:00:06"]

1. e4 {[%clk 0:03:00]}  c5 {[%clk 0:02:57]} 2. Nf3 {[%clk 0:02:59]}  Nc6 {[%clk 0:02:57]} 3. Nc3 {[%clk 0:02:59]}  g6 {[%clk 0:02:56]} 4. d4 {[%clk 0:02:58]}  cxd4 {[%clk 0:02:56]} 5. Nxd4 {[%clk 0:02:57]}  Bg7 {[%clk 0:02:55]} 6. Be3 {[%clk 0:02:57]}  Nf6 {[%clk 0:02:55]} 7. Nxc6 {[%clk 0:02:56]}  bxc6 {[%clk 0:02:54]} 8. e5 {[%clk 0:02:57]}  Ng8 {[%clk 0:02:50]} 9. Bd4 {[%clk 0:02:57]}  Qa5 {[%clk 0:02:46]} 10. e6 {[%clk 0:02:52]}  Bxd4 {[%clk 0:02:45]} 11. Qxd4 {[%clk 0:02:44]}  Nf6 {[%clk 0:02:41]} 12. exf7+ {[%clk 0:02:43]}  Kxf7 {[%clk 0:02:40]} 13. Bc4+ {[%clk 0:02:41]}  d5 {[%clk 0:02:38]} 14. Bb3 {[%clk 0:02:41]}  e5 {[%clk 0:02:37]} 15. Qa4 {[%clk 0:02:38]}  Qxa4 {[%clk 0:02:35]} 16. Nxa4 {[%clk 0:02:39]}  Be6 {[%clk 0:02:14]} 17. O-O-O {[%clk 0:02:37]}  Ne4 {[%clk 0:02:09]} 18. Rhe1 {[%clk 0:02:29]}  Kf6 {[%clk 0:02:04]} 19. f3 {[%clk 0:02:28]}  Nd6 {[%clk 0:02:04]} 20. Nc5 {[%clk 0:02:27]}  Rhe8 {[%clk 0:01:58]} 21. Rd2 {[%clk 0:02:01]}  Rad8 {[%clk 0:01:49]} 22. Ba4 {[%clk 0:01:55]}  Rc8 {[%clk 0:01:40]} 23. Rde2 {[%clk 0:01:51]}  Nf7 {[%clk 0:01:19]} 24. Re3 {[%clk 0:01:46]}  Re7 {[%clk 0:00:58]} 25. h4 {[%clk 0:01:36]}  h5 {[%clk 0:00:57]} 26. a3 {[%clk 0:01:08]}  Bf5 {[%clk 0:00:57]} 27. Rf1 {[%clk 0:01:04]}  Kg7 {[%clk 0:00:53]} 28. Rfe1 {[%clk 0:00:58]}  Kf6 {[%clk 0:00:51]} 29. R3e2 {[%clk 0:00:58]}  Nd6 {[%clk 0:00:51]} 30. Rf2 {[%clk 0:00:52]}  Kg7 {[%clk 0:00:49]} 31. Rg1 {[%clk 0:00:52]}  Rf7 {[%clk 0:00:14]} 32. Re2 {[%clk 0:00:47]}  Re7 {[%clk 0:00:13]} 33. g4 {[%clk 0:00:46]}  hxg4 {[%clk 0:00:14]} 34. fxg4 {[%clk 0:00:47]}  Be4 {[%clk 0:00:15]} 35. Rf1 {[%clk 0:00:35]}  Rf7 {[%clk 0:00:06]} 36. Ne6+ {[%clk 0:00:35]}  Kg8 {[%clk 0:00:06]} 37. Ref2 {[%clk 0:00:36]}  Rxf2 {[%clk 0:00:06]} 38. Rxf2 {[%clk 0:00:36]}  Nf7 {[%clk 0:00:06]} 39. Kd2 {[%clk 0:00:25]}  Nd6 {[%clk 0:00:06]} 40. Ke1 {[%clk 0:00:13]}  Nc4 {[%clk 0:00:06]} 41. b4 {[%clk 0:00:09]}  Ne3 {[%clk 0:00:06]} 42. g5 {[%clk 0:00:07]}  Nf5 {[%clk 0:00:06]} 43. Nc5 {[%clk 0:00:05]}  Nxh4 {[%clk 0:00:06]} 44. Nxe4 {[%clk 0:00:05]}  dxe4 {[%clk 0:00:05]} 45. Bb3+ {[%clk 0:00:06]}  Kh8 {[%clk 0:00:05]} 46. Rh2 {[%clk 0:00:06]}  Kg7 {[%clk 0:00:04]} 47. Rxh4 {[%clk 0:00:05]}  c5 {[%clk 0:00:03]} 48. Rxe4 {[%clk 0:00:05]}  cxb4 {[%clk 0:00:04]} 49. axb4 {[%clk 0:00:06]}  Rb8 {[%clk 0:00:04]} 50. Rxe5 {[%clk 0:00:04]}  Rxb4 {[%clk 0:00:04]} 51. Re7+ {[%clk 0:00:05]}  Kh8 {[%clk 0:00:04]} 52. Re8+ {[%clk 0:00:03]}  Kh7 {[%clk 0:00:04]} 53. Ra8 {[%clk 0:00:03]}  Rb7 {[%clk 0:00:03]} 54. Kd2 {[%clk 0:00:03]}  Re7 {[%clk 0:00:03]} 55. Bd5 {[%clk 0:00:02]}  a5 {[%clk 0:00:04]} 56. c4 {[%clk 0:00:02]}  a4 {[%clk 0:00:03]} 57. Rxa4 {[%clk 0:00:02]}  Kh8 {[%clk 0:00:02]} 58. Kd3 {[%clk 0:00:02]}  Kh7 {[%clk 0:00:03]} 59. Kd4 {[%clk 0:00:03]}  Rd7 {[%clk 0:00:03]} 60. Kc5 {[%clk 0:00:03]}  Kh8 {[%clk 0:00:03]} 61. Kc6 {[%clk 0:00:04]}  Ra7 {[%clk 0:00:04]} 62. Rb4 {[%clk 0:00:03]}  Ra8 {[%clk 0:00:05]} 63. Kc5 {[%clk 0:00:03]}  Rc8+ {[%clk 0:00:06]} 64. Kd4 {[%clk 0:00:04]}  Rd8 {[%clk 0:00:07]} 65. Rb5 {[%clk 0:00:04]}  Kh7 {[%clk 0:00:07]} 66. Ke5 {[%clk 0:00:04]}  Rb8 {[%clk 0:00:08]} 67. Rxb8 {[%clk 0:00:03]}  Kg7 {[%clk 0:00:08]} 68. Rb7+ {[%clk 0:00:04]}  Kh8 {[%clk 0:00:08]} 69. Bh1 {[%clk 0:00:05]}  Kg8 {[%clk 0:00:06]} 70. Kf6 {[%clk 0:00:06]}  Kh8 {[%clk 0:00:06]} 71. Kxg6 {[%clk 0:00:06]}  Kg8 {[%clk 0:00:06]} 72. Rb8# {[%clk 0:00:07]} 1-0


[Site "https://www.chess.com"]

[Event "Titled Tuesday Blitz October 5 2021"]
[White "Maksimenko, Viktor"]
[Black "Petrova, Irina"]
[WhiteFideId "13710478"]
[BlackFideId "14124122"]
[WhiteElo "2269"]
[BlackElo "2042"]
[Result "1-0"]
[Round "08"]
[TimeControl "180+1"]
[Date "2021.10.05"]
[WhiteClock "0:02:04"]
[BlackClock "0:01:19"]

1. d4 {[%clk 0:03:00]}  d6 {[%clk 0:03:00]} 2. e4 {[%clk 0:03:00]}  Nf6 {[%clk 0:03:00]} 3. Nc3 {[%clk 0:02:59]}  e5 {[%clk 0:02:59]} 4. Nf3 {[%clk 0:02:57]}  exd4 {[%clk 0:02:56]} 5. Nxd4 {[%clk 0:02:58]}  Be7 {[%clk 0:02:56]} 6. Be2 {[%clk 0:02:58]}  O-O {[%clk 0:02:56]} 7. O-O {[%clk 0:02:59]}  Re8 {[%clk 0:02:56]} 8. f4 {[%clk 0:02:57]}  Bf8 {[%clk 0:02:28]} 9. Bf3 {[%clk 0:02:55]}  c5 {[%clk 0:02:26]} 10. Nb3 {[%clk 0:02:53]}  Nc6 {[%clk 0:02:26]} 11. Re1 {[%clk 0:02:48]}  a5 {[%clk 0:02:25]} 12. a4 {[%clk 0:02:47]}  Nb4 {[%clk 0:02:24]} 13. Nb5 {[%clk 0:02:41]}  h5 {[%clk 0:02:07]} 14. h3 {[%clk 0:02:37]}  d5 {[%clk 0:02:06]} 15. e5 {[%clk 0:02:35]}  Nh7 {[%clk 0:01:54]} 16. c3 {[%clk 0:02:33]}  c4 {[%clk 0:01:48]} 17. N3d4 {[%clk 0:02:25]}  Nd3 {[%clk 0:01:47]} 18. Rf1 {[%clk 0:02:20]}  g6 {[%clk 0:01:40]} 19. Be2 {[%clk 0:02:16]}  Bf5 {[%clk 0:01:40]} 20. Nxf5 {[%clk 0:02:14]}  gxf5 {[%clk 0:01:36]} 21. Bxd3 {[%clk 0:02:14]}  cxd3 {[%clk 0:01:36]} 22. Qxd3 {[%clk 0:02:15]}  f6 {[%clk 0:01:30]} 23. Qxf5 {[%clk 0:02:14]}  fxe5 {[%clk 0:01:27]} 24. fxe5 {[%clk 0:02:11]}  Bc5+ {[%clk 0:01:27]} 25. Kh1 {[%clk 0:02:06]}  Rf8 {[%clk 0:01:27]} 26. Qg6+ {[%clk 0:02:06]}  Kh8 {[%clk 0:01:27]} 27. Bh6 {[%clk 0:02:06]}  Rxf1+ {[%clk 0:01:22]} 28. Rxf1 {[%clk 0:02:05]}  Qe7 {[%clk 0:01:19]} 29. Rf7 {[%clk 0:02:04]} 1-0


[Site "https://www.chess.com"]

[Event "Titled Tuesday Blitz October 5 2021"]
[White "Maksimovic, Bojan"]
[Black "Holt, Conrad"]
[WhiteFideId "14408120"]
[BlackFideId "2034387"]
[WhiteElo "2439"]
[BlackElo "2586"]
[Result "1-0"]
[Round "08"]
[TimeControl "180+1"]
[Date "2021.10.05"]
[WhiteClock "0:01:07"]
[BlackClock "0:00:12"]

1. e4 {[%clk 0:03:00]}  e6 {[%clk 0:03:00]} 2. d4 {[%clk 0:03:01]}  d5 {[%clk 0:03:00]} 3. Nc3 {[%clk 0:03:01]}  Nf6 {[%clk 0:03:01]} 4. Bg5 {[%clk 0:03:00]}  dxe4 {[%clk 0:03:01]} 5. Nxe4 {[%clk 0:03:00]}  Be7 {[%clk 0:03:02]} 6. Bxf6 {[%clk 0:03:00]}  Bxf6 {[%clk 0:03:03]} 7. Nf3 {[%clk 0:03:00]}  Nd7 {[%clk 0:03:04]} 8. Qd2 {[%clk 0:02:53]}  O-O {[%clk 0:03:03]} 9. O-O-O {[%clk 0:02:47]}  Be7 {[%clk 0:03:04]} 10. Bd3 {[%clk 0:02:38]}  b6 {[%clk 0:03:00]} 11. Ne5 {[%clk 0:02:27]}  Bb7 {[%clk 0:02:58]} 12. Qe3 {[%clk 0:02:26]}  c5 {[%clk 0:02:48]} 13. Bb5 {[%clk 0:02:20]}  Nxe5 {[%clk 0:02:03]} 14. dxe5 {[%clk 0:02:18]}  Qc8 {[%clk 0:01:33]} 15. Rd7 {[%clk 0:02:01]}  Bxe4 {[%clk 0:01:29]} 16. Qxe4 {[%clk 0:02:00]}  Bg5+ {[%clk 0:01:18]} 17. f4 {[%clk 0:01:59]}  Bh6 {[%clk 0:01:17]} 18. g3 {[%clk 0:01:47]}  a6 {[%clk 0:01:07]} 19. Bc6 {[%clk 0:01:46]}  Rb8 {[%clk 0:00:50]} 20. Rhd1 {[%clk 0:01:46]}  b5 {[%clk 0:00:44]} 21. Bb7 {[%clk 0:01:43]}  Qe8 {[%clk 0:00:44]} 22. h4 {[%clk 0:01:36]}  c4 {[%clk 0:00:41]} 23. Kb1 {[%clk 0:01:29]}  c3 {[%clk 0:00:36]} 24. b3 {[%clk 0:01:26]}  a5 {[%clk 0:00:35]} 25. a3 {[%clk 0:01:16]}  g6 {[%clk 0:00:24]} 26. Ka2 {[%clk 0:01:14]}  Bg7 {[%clk 0:00:16]} 27. g4 {[%clk 0:01:14]}  f5 {[%clk 0:00:13]} 28. exf6 {[%clk 0:01:15]}  Rxf6 {[%clk 0:00:11]} 29. Rc7 {[%clk 0:01:06]}  Rd8 {[%clk 0:00:10]} 30. Rxd8 {[%clk 0:01:05]}  Qxd8 {[%clk 0:00:11]} 31. Rc8 {[%clk 0:01:06]}  Qxc8 {[%clk 0:00:12]} 32. Bxc8 {[%clk 0:01:07]} 1-0


[Site "https://www.chess.com"]

[Event "Titled Tuesday Blitz October 5 2021"]
[White "Martinovici, Ilia"]
[Black "Ekdyshman, Mikhail"]
[WhiteFideId "13907034"]
[BlackFideId "4149416"]
[WhiteElo "2303"]
[BlackElo "2256"]
[Result "1/2-1/2"]
[Round "08"]
[TimeControl "180+1"]
[Date "2021.10.05"]
[WhiteClock "0:00:06"]
[BlackClock "0:00:02"]

1. d4 {[%clk 0:03:00]}  Nf6 {[%clk 0:02:59]} 2. c4 {[%clk 0:03:01]}  c5 {[%clk 0:02:59]} 3. d5 {[%clk 0:03:00]}  b5 {[%clk 0:02:59]} 4. Nd2 {[%clk 0:03:00]}  a6 {[%clk 0:02:56]} 5. b3 {[%clk 0:03:00]}  g6 {[%clk 0:02:55]} 6. Bb2 {[%clk 0:02:59]}  Bg7 {[%clk 0:02:55]} 7. e4 {[%clk 0:03:00]}  bxc4 {[%clk 0:02:51]} 8. Bxc4 {[%clk 0:02:58]}  d6 {[%clk 0:02:50]} 9. Ne2 {[%clk 0:02:55]}  O-O {[%clk 0:02:48]} 10. Qc2 {[%clk 0:02:55]}  Nbd7 {[%clk 0:02:47]} 11. O-O {[%clk 0:02:53]}  Nb6 {[%clk 0:02:48]} 12. f4 {[%clk 0:02:48]}  Re8 {[%clk 0:02:40]} 13. Rad1 {[%clk 0:02:42]}  Bg4 {[%clk 0:02:35]} 14. Nf3 {[%clk 0:02:31]}  Rb8 {[%clk 0:02:08]} 15. e5 {[%clk 0:02:18]}  Nfd7 {[%clk 0:01:55]} 16. Bc3 {[%clk 0:01:40]}  Nxc4 {[%clk 0:01:50]} 17. bxc4 {[%clk 0:01:41]}  Bxf3 {[%clk 0:01:47]} 18. Rxf3 {[%clk 0:01:40]}  dxe5 {[%clk 0:01:47]} 19. f5 {[%clk 0:01:37]}  Rb6 {[%clk 0:01:34]} 20. Rdf1 {[%clk 0:01:34]}  Rf6 {[%clk 0:01:31]} 21. Ng3 {[%clk 0:01:26]}  e6 {[%clk 0:01:13]} 22. fxe6 {[%clk 0:01:20]}  Rxf3 {[%clk 0:01:06]} 23. Rxf3 {[%clk 0:01:20]}  fxe6 {[%clk 0:01:06]} 24. d6 {[%clk 0:01:19]}  Nb8 {[%clk 0:00:43]} 25. Ne4 {[%clk 0:01:15]}  Nc6 {[%clk 0:00:40]} 26. Qd3 {[%clk 0:00:32]}  Nd4 {[%clk 0:00:39]} 27. Rf1 {[%clk 0:00:32]}  Rf8 {[%clk 0:00:36]} 28. Rxf8+ {[%clk 0:00:31]}  Bxf8 {[%clk 0:00:36]} 29. d7 {[%clk 0:00:25]}  Be7 {[%clk 0:00:30]} 30. Bxd4 {[%clk 0:00:15]}  exd4 {[%clk 0:00:29]} 31. Qg3 {[%clk 0:00:08]}  Qxd7 {[%clk 0:00:26]} 32. Qb8+ {[%clk 0:00:09]}  Kg7 {[%clk 0:00:10]} 33. Qe5+ {[%clk 0:00:08]}  Kg8 {[%clk 0:00:07]} 34. Qb8+ {[%clk 0:00:08]}  Kg7 {[%clk 0:00:07]} 35. Qe5+ {[%clk 0:00:08]}  Kg8 {[%clk 0:00:02]} 36. Qb8+ {[%clk 0:00:06]} 1/2-1/2


[Site "https://www.chess.com"]

[Event "Titled Tuesday Blitz October 5 2021"]
[White "Moroni, Luca Jr"]
[Black "Bortnyk, Olexandr"]
[WhiteFideId "865834"]
[BlackFideId "14120828"]
[WhiteElo "2491"]
[BlackElo "2723"]
[Result "1-0"]
[Round "08"]
[TimeControl "180+1"]
[Date "2021.10.05"]
[WhiteClock "0:01:52"]
[BlackClock "0:00:11"]

1. d4 {[%clk 0:03:00]}  f5 {[%clk 0:02:59]} 2. c4 {[%clk 0:03:01]}  Nf6 {[%clk 0:02:59]} 3. g3 {[%clk 0:03:01]}  d6 {[%clk 0:03:00]} 4. Bg2 {[%clk 0:03:02]}  g6 {[%clk 0:03:00]} 5. b3 {[%clk 0:03:02]}  e5 {[%clk 0:02:59]} 6. dxe5 {[%clk 0:03:02]}  dxe5 {[%clk 0:02:59]} 7. Qxd8+ {[%clk 0:03:03]}  Kxd8 {[%clk 0:03:00]} 8. Bb2 {[%clk 0:03:04]}  Nbd7 {[%clk 0:02:59]} 9. Nf3 {[%clk 0:03:04]}  e4 {[%clk 0:02:56]} 10. Ne5 {[%clk 0:03:03]}  Bb4+ {[%clk 0:02:41]} 11. Nd2 {[%clk 0:03:02]}  Bxd2+ {[%clk 0:02:37]} 12. Kxd2 {[%clk 0:03:02]}  Ke7 {[%clk 0:02:38]} 13. Nxd7 {[%clk 0:02:58]}  Bxd7 {[%clk 0:02:36]} 14. Rad1 {[%clk 0:02:57]}  Bc6 {[%clk 0:02:30]} 15. f3 {[%clk 0:02:53]}  Rhd8+ {[%clk 0:02:26]} 16. Ke3 {[%clk 0:02:51]}  exf3 {[%clk 0:02:23]} 17. exf3 {[%clk 0:02:52]}  Kf7 {[%clk 0:02:22]} 18. Rhe1 {[%clk 0:02:49]}  Ng4+ {[%clk 0:02:12]} 19. fxg4 {[%clk 0:02:39]}  Bxg2 {[%clk 0:02:13]} 20. gxf5 {[%clk 0:02:39]}  gxf5 {[%clk 0:02:13]} 21. Kf4 {[%clk 0:02:38]}  Be4 {[%clk 0:01:31]} 22. g4 {[%clk 0:02:31]}  Bc2 {[%clk 0:01:09]} 23. Rxd8 {[%clk 0:02:23]}  Rxd8 {[%clk 0:01:10]} 24. gxf5 {[%clk 0:02:23]}  Rd2 {[%clk 0:01:09]} 25. f6 {[%clk 0:02:21]}  Bxb3 {[%clk 0:01:00]} 26. Re7+ {[%clk 0:02:16]}  Kg6 {[%clk 0:01:00]} 27. Rg7+ {[%clk 0:02:13]}  Kh6 {[%clk 0:01:00]} 28. Bc1 {[%clk 0:01:57]}  Rd1 {[%clk 0:00:51]} 29. Be3 {[%clk 0:01:53]}  Bc2 {[%clk 0:00:11]} 30. Kg4# {[%clk 0:01:52]} 1-0


[Site "https://www.chess.com"]

[Event "Titled Tuesday Blitz October 5 2021"]
[White "Nakamura, Hikaru"]
[Black "Pridorozhni, Aleksei"]
[WhiteFideId "2016192"]
[BlackFideId "4127870"]
[WhiteElo "2884"]
[BlackElo "2565"]
[Result "1-0"]
[Round "08"]
[TimeControl "180+1"]
[Date "2021.10.05"]
[WhiteClock "0:00:11"]
[BlackClock "0:00:07"]

1. Nf3 {[%clk 0:03:00]}  Nf6 {[%clk 0:02:52]} 2. e3 {[%clk 0:03:00]}  d5 {[%clk 0:02:52]} 3. c4 {[%clk 0:03:00]}  e6 {[%clk 0:02:51]} 4. b3 {[%clk 0:02:58]}  b6 {[%clk 0:02:50]} 5. Bb2 {[%clk 0:02:56]}  Bb7 {[%clk 0:02:51]} 6. cxd5 {[%clk 0:02:57]}  exd5 {[%clk 0:02:49]} 7. d4 {[%clk 0:02:57]}  Be7 {[%clk 0:02:48]} 8. Bd3 {[%clk 0:02:52]}  O-O {[%clk 0:02:48]} 9. O-O {[%clk 0:02:53]}  Nbd7 {[%clk 0:02:46]} 10. Nc3 {[%clk 0:02:42]}  c5 {[%clk 0:02:43]} 11. dxc5 {[%clk 0:02:42]}  bxc5 {[%clk 0:02:43]} 12. Rc1 {[%clk 0:02:40]}  Nb6 {[%clk 0:02:41]} 13. Ne2 {[%clk 0:02:38]}  Rc8 {[%clk 0:02:38]} 14. Bf5 {[%clk 0:02:36]}  Rc7 {[%clk 0:02:34]} 15. Ng3 {[%clk 0:02:27]}  Re8 {[%clk 0:02:26]} 16. Bb1 {[%clk 0:02:23]}  Bf8 {[%clk 0:02:19]} 17. Be5 {[%clk 0:02:06]}  Rc6 {[%clk 0:02:17]} 18. Bd3 {[%clk 0:02:05]}  Rce6 {[%clk 0:02:11]} 19. Bb2 {[%clk 0:02:01]}  Nbd7 {[%clk 0:01:59]} 20. Qc2 {[%clk 0:01:53]}  Qa5 {[%clk 0:01:47]} 21. Ng5 {[%clk 0:01:52]}  g6 {[%clk 0:01:32]} 22. Nxe6 {[%clk 0:01:51]}  Rxe6 {[%clk 0:01:33]} 23. Rfd1 {[%clk 0:01:45]}  Bg7 {[%clk 0:01:29]} 24. Ne2 {[%clk 0:01:44]}  Re7 {[%clk 0:01:24]} 25. Nf4 {[%clk 0:01:44]}  h5 {[%clk 0:01:13]} 26. Be2 {[%clk 0:01:41]}  d4 {[%clk 0:01:03]} 27. Bc4 {[%clk 0:01:32]}  Kh7 {[%clk 0:00:58]} 28. exd4 {[%clk 0:01:22]}  cxd4 {[%clk 0:00:58]} 29. Bf1 {[%clk 0:01:14]}  Qg5 {[%clk 0:00:48]} 30. Rxd4 {[%clk 0:01:09]}  Ng4 {[%clk 0:00:44]} 31. Rb4 {[%clk 0:00:54]}  Bxb2 {[%clk 0:00:35]} 32. Qxb2 {[%clk 0:00:53]}  Nde5 {[%clk 0:00:36]} 33. Nh3 {[%clk 0:00:44]}  Qh4 {[%clk 0:00:29]} 34. Rc3 {[%clk 0:00:36]}  Rd7 {[%clk 0:00:24]} 35. Qe2 {[%clk 0:00:33]}  Re7 {[%clk 0:00:19]} 36. Qc2 {[%clk 0:00:27]}  Bd5 {[%clk 0:00:17]} 37. Rc7 {[%clk 0:00:20]}  Re8 {[%clk 0:00:12]} 38. Rf4 {[%clk 0:00:18]}  Rd8 {[%clk 0:00:07]} 39. g3 {[%clk 0:00:11]} 1-0


[Site "https://www.chess.com"]